[Event "44th Chess Olympiad Open 2022"]
[Site "Chennai"]
[Date "2022.08.09"]
[Round "11.50"]
[White "Juarez Flores, Carlos A."]
[Black "Thing, Bibek"]
[Result "1/2-1/2"]
[ECO "B55"]
[WhiteElo "2335"]
[BlackElo "2260"]
[Annotator "RC"]
[PlyCount "106"]
[EventDate "2022.07.29"]
[EventType "team-tourn"]
[EventCountry "IND"]
[SourceTitle "playchess.com"]
[Source "ChessBase"]
[SourceQuality "1"]
[WhiteTeam "Guatemala"]
[BlackTeam "Nepal"]
[WhiteTeamCountry "GUA"]
[BlackTeamCountry "NEP"]
[TimeControl "40/5400+30:1800+30"]

1. e4 {[%emt 0:00:05]} c5 {[%emt 0:00:15]} 2. Nf3 {[%emt 0:00:07]} d6 {[%emt 0:00:01]} 3. d4 {[%emt 0:00:07]} cxd4 {[%emt 0:00:04]} 4. Nxd4 {[%emt 0:00:05]} Nf6 {[%emt 0:00:04]} 5. f3 {[%emt 0:00:27]} e5 {[%emt 0:00:15]} 6. Bb5+ {[%emt 0:00:22]} Nbd7 {[%emt 0:00:21]} 7. Nf5 {[%emt 0:00:19]} d5 {[%emt 0:00:13]} 8. exd5 {[%emt 0:00:20]} a6 {[%emt 0:00:11]} 9. Ba4 {[%emt 0:00:18]} b5 {[%emt 0:00:03]} 10. Bb3 {[%emt 0:00:05]} Nb6 {[%emt 0:01:29]} 11. Ne3 {[%emt 0:00:10]} Bb7 {[%emt 0:03:05]} 12. O-O {[%emt 0:02:36]} Bc5 {[%emt 0:06:42]} 13. Kh1 {[%emt 0:00:41]} O-O {[%emt 0:01:37]} 14. Nc3 {[%emt 0:01:52]} Bd4 {[%emt 0:05:32]} 15. Nf5 {[%emt 0:11:40]} Bxc3 {[%emt 0:01:24]} 16. bxc3 {[%emt 0:00:02]} Qd7 {[%emt 0:04:03]} 17. Qd3 {[%emt 0:20:05]} Bxd5 {[%emt 0:22:48]} 18. Ba3 {[%emt 0:04:51]} Rfe8 {[%emt 0:00:56]} 19. Rad1 {[%emt 0:17:38]} Nc4 {[%emt 0:03:10]} 20. Bc1 {[%emt 0:00:16]} Qe6 {[%emt 0:06:49]} 21. Ng3 {[%emt 0:03:20]} Nb6 {[%emt 0:14:17]} 22. Rfe1 {[%emt 0:01:32]} Bc4 {[%emt 0:03:08]} 23. Qf5 {[%emt 0:04:10]} Nbd5 {[%emt 0:01:38]} 24. Bxc4 {[%emt 0:04:05]} bxc4 {[%emt 0:00:13]} 25. Bd2 {[%emt 0:00:06]} Rab8 {[%emt 0:05:14]} 26. Rb1 {[%emt 0:01:14]} Rxb1 {[%emt 0:01:21]} 27. Rxb1 {[%emt 0:00:02]} h6 {[%emt 0:02:49]} 28. h3 {[%emt 0:05:18]} Qc6 {[%emt 0:00:55]} 29. h4 {[%emt 0:03:22]} Qa4 {[%emt 0:04:51]} 30. h5 {[%emt 0:02:03]} Ne7 {[%emt 0:03:46]} 31. Qxe5 {[%emt 0:02:19]} Qxc2 {[%emt 0:00:03]} 32. Rb8 {[%emt 0:00:57]} Rxb8 {[%emt 0:00:37]} 33. Qxb8+ {[%emt 0:00:03]} Kh7 {[%emt 0:00:01]} 34. Qe5 {[%emt 0:06:27]} Qxd2 {[%emt 0:02:02]} 35. Qxe7 {[%emt 0:00:20]} Qc1+ {[%emt 0:00:12]} 36. Kh2 {[%emt 0:00:12]} Qf4 {[%emt 0:00:02]} 37. Kh3 {[%emt 0:02:49]} Nd5 {[%emt 0:03:24]} 38. Qe1 {[%emt 0:07:32]} Ne3 {[%emt 0:01:27]} 39. Qb1+ {[%emt 0:01:18]} f5 {[%emt 0:03:19]} 40. Qb6 {[%emt 0:00:26]} Qe5 {[%emt 0:01:32]} 41. Qxa6 {[%emt 0:07:59]} f4 {[%emt 0:05:23]} 42. Qg6+ {[%emt 0:00:26]} Kh8 {[%emt 0:00:09]} 43. Ne4 {[%emt 0:02:03]} Nd1 {[%emt 0:05:12]} 44. Nd6 {[%emt 0:04:14]} Qe1 {[%emt 0:05:08]} 45. Qe8+ {[%emt 0:06:03]} Qxe8 {[%emt 0:00:40]} 46. Nxe8 {[%emt 0:00:02]} Nxc3 {[%emt 0:00:10]} 47. Nd6 {[%emt 0:00:02]} Nxa2 {[%emt 0:00:40]} 48. Nxc4 {[%emt 0:00:02]} Nb4 {[%emt 0:00:53]} 49. Ne5 {[%emt 0:01:22]} Nd5 {[%emt 0:00:33]} 50. Ng6+ {[%emt 0:00:48]} Kh7 {[%emt 0:00:39]} 51. Kg4 {[%emt 0:00:20]} Nf6+ {[%emt 0:00:41]} 52. Kh4 {[%emt 0:01:07]} Nd5 {[%emt 0:00:11]} 53. Kg4 {[%emt 0:01:51]} Nf6+ {[%emt 0:00:23]} 1/2-1/2

[Event "44th Chess Olympiad Open 2022"]
[Site "Chennai"]
[Date "2022.08.09"]
[Round "11.50"]
[White "Giron Chavez David Emanuel"]
[Black "Jaiswal, Rupesh"]
[Result "1-0"]
[ECO "B55"]
[WhiteElo "2115"]
[BlackElo "2083"]
[Annotator "RC"]
[PlyCount "117"]
[EventDate "2022.07.29"]
[EventType "team-tourn"]
[EventCountry "IND"]
[SourceTitle "playchess.com"]
[Source "ChessBase"]
[SourceQuality "1"]
[WhiteTeam "Guatemala"]
[BlackTeam "Nepal"]
[WhiteTeamCountry "GUA"]
[BlackTeamCountry "NEP"]
[TimeControl "40/5400+30:1800+30"]

1. e4 {[%emt 0:00:48]} c5 {[%emt 0:00:58]} 2. Nf3 {[%emt 0:00:00]} d6 {[%emt 0:00:06]} 3. d4 {[%emt 0:00:00]} cxd4 {[%emt 0:00:03]} 4. Nxd4 {[%emt 0:00:00]} Nf6 {[%emt 0:00:02]} 5. f3 {[%emt 0:00:00]} e5 {[%emt 0:00:44]} 6. Nb3 {[%emt 0:00:00]} Be6 {[%emt 0:01:36]} 7. c4 {[%emt 0:00:12]} Nbd7 {[%emt 0:04:30]} 8. Be3 {[%emt 0:00:09]} Qc7 {[%emt 0:12:41]} 9. Nc3 {[%emt 0:10:28]} Be7 {[%emt 0:00:00]} 10. Rc1 {[%emt 0:03:47]} O-O {[%emt 0:00:00]} 11. Nd5 {[%emt 0:02:25]} Bxd5 {[%emt 0:00:00]} 12. cxd5 {[%emt 0:00:04]} Qb8 {[%emt 0:00:00]} 13. Qd2 {[%emt 0:01:17]} Rc8 {[%emt 0:01:52]} 14. Rxc8+ {[%emt 0:00:27]} Qxc8 {[%emt 0:00:07]} 15. Be2 {[%emt 0:00:08]} Nb6 {[%emt 0:04:23]} 16. Na5 {[%emt 0:02:45]} Qd7 {[%emt 0:04:04]} 17. O-O {[%emt 0:03:06]} Rc8 {[%emt 0:00:25]} 18. Qb4 {[%emt 0:10:36]} Bd8 {[%emt 0:06:00]} 19. Bb5 {[%emt 0:07:09]} Qe7 {[%emt 0:02:42]} 20. Rd1 {[%emt 0:00:23]} Nh5 {[%emt 0:06:08]} 21. g3 {[%emt 0:09:25]} g6 {[%emt 0:05:46]} 22. a4 {[%emt 0:07:38]} f5 {[%emt 0:04:42]} 23. Nb3 {[%emt 0:04:51]} f4 {[%emt 0:05:22]} 24. Bf2 {[%emt 0:02:19]} fxg3 {[%emt 0:02:33]} 25. hxg3 {[%emt 0:00:08]} Rc2 {[%emt 0:02:34]} 26. Rd2 {[%emt 0:03:58]} Rxd2 {[%emt 0:06:26]} 27. Nxd2 {[%emt 0:00:13]} Qc7 {[%emt 0:00:21]} 28. a5 {[%emt 0:05:58]} Nc8 {[%emt 0:02:10]} 29. a6 {[%emt 0:04:32]} bxa6 {[%emt 0:01:22]} 30. Bc6 {[%emt 0:03:47]} Qa5 {[%emt 0:02:41]} 31. Qxa5 {[%emt 0:06:11]} Bxa5 {[%emt 0:00:18]} 32. Nc4 {[%emt 0:00:05]} Bc7 {[%emt 0:00:58]} 33. Kg2 {[%emt 0:00:23]} Nb6 {[%emt 0:00:55]} 34. Na5 {[%emt 0:02:39]} Nf6 {[%emt 0:02:27]} 35. b4 {[%emt 0:00:48]} g5 {[%emt 0:02:58]} 36. Bb7 {[%emt 0:04:35]} Nfd7 {[%emt 0:01:40]} 37. Nc6 {[%emt 0:02:41]} Nb8 {[%emt 0:06:02]} 38. Nxa7 {[%emt 0:00:17]} N6d7 {[%emt 0:00:53]} 39. Nc6 {[%emt 0:02:27]} Kf7 {[%emt 0:01:27]} 40. Kh3 {[%emt 0:02:13]} h5 {[%emt 0:02:48]} 41. Be3 {[%emt 0:01:51]} Kg6 {[%emt 0:05:39]} 42. Kg2 {[%emt 0:04:35]} Kf6 {[%emt 0:02:13]} 43. Kf2 {[%emt 0:03:50]} Kg6 {[%emt 0:02:04]} 44. Ke2 {[%emt 0:00:13]} Kf6 {[%emt 0:03:40]} 45. Kd3 {[%emt 0:02:07]} Kg6 {[%emt 0:00:51]} 46. Nxb8 {[%emt 0:00:48]} Nxb8 {[%emt 0:00:29]} 47. Bc8 {[%emt 0:00:06]} Kf6 {[%emt 0:02:11]} 48. Kc4 {[%emt 0:00:16]} Bd8 {[%emt 0:03:56]} 49. b5 {[%emt 0:05:17]} axb5+ {[%emt 0:00:02]} 50. Kxb5 {[%emt 0:00:09]} Bc7 {[%emt 0:00:05]} 51. Be6 {[%emt 0:03:00]} h4 {[%emt 0:02:27]} 52. gxh4 {[%emt 0:00:03]} gxh4 {[%emt 0:00:07]} 53. Bf5 {[%emt 0:00:06]} Kf7 {[%emt 0:02:28]} 54. Bg5 {[%emt 0:01:13]} Kf8 {[%emt 0:00:15]} 55. Bxh4 {[%emt 0:00:07]} Ke8 {[%emt 0:00:06]} 56. Bg5 {[%emt 0:01:56]} Kf7 {[%emt 0:01:14]} 57. Be3 {[%emt 0:01:29]} Ke7 {[%emt 0:00:21]} 58. Bb6 {[%emt 0:01:03]} Kd8 {[%emt 0:03:32]} 59. Be6 {[%emt 0:00:06]} 1-0

[Event "44th Chess Olympiad Open 2022"]
[Site "Chennai"]
[Date "2022.08.09"]
[Round "11.50"]
[White "Lama, Milan"]
[Black "Lorenzana, Wilson Estuardo"]
[Result "1-0"]
[ECO "B22"]
[WhiteElo "2024"]
[BlackElo "2182"]
[Annotator "RC"]
[PlyCount "115"]
[EventDate "2022.07.29"]
[EventType "team-tourn"]
[EventCountry "IND"]
[SourceTitle "playchess.com"]
[Source "ChessBase"]
[SourceQuality "1"]
[WhiteTeam "Nepal"]
[BlackTeam "Guatemala"]
[WhiteTeamCountry "NEP"]
[BlackTeamCountry "GUA"]
[TimeControl "40/5400+30:1800+30"]

1. e4 {[%emt 0:00:03]} c5 {[%emt 0:00:05]} 2. c3 {[%emt 0:00:07]} d5 {[%emt 0:00:28]} 3. exd5 {[%emt 0:00:11]} Qxd5 {[%emt 0:00:05]} 4. d4 {[%emt 0:00:04]} e6 {[%emt 0:03:09]} 5. Nf3 {[%emt 0:00:49]} Nf6 {[%emt 0:00:59]} 6. Be3 {[%emt 0:02:41]} cxd4 {[%emt 0:00:26]} 7. Nxd4 {[%emt 0:03:41]} Qd8 {[%emt 0:09:33]} 8. Nb5 {[%emt 0:06:45]} Nd5 {[%emt 0:00:48]} 9. Bxa7 {[%emt 0:06:15]} Nc6 {[%emt 0:00:06]} 10. Be3 {[%emt 0:05:56]} Nxe3 {[%emt 0:00:08]} 11. Qxd8+ {[%emt 0:00:50]} Kxd8 {[%emt 0:00:56]} 12. fxe3 {[%emt 0:03:03]} Bc5 {[%emt 0:00:05]} 13. e4 {[%emt 0:05:16]} Ne5 {[%emt 0:02:37]} 14. b4 {[%emt 0:02:09]} Be3 {[%emt 0:06:08]} 15. Nd2 {[%emt 0:02:31]} Ke7 {[%emt 0:01:33]} 16. Nc4 {[%emt 0:16:15]} Nxc4 {[%emt 0:01:24]} 17. Bxc4 {[%emt 0:00:04]} Bd7 {[%emt 0:00:11]} 18. Ke2 {[%emt 0:04:20]} Rhc8 {[%emt 0:01:59]} 19. Kd3 {[%emt 0:02:09]} Bxb5 {[%emt 0:04:26]} 20. Bxb5 {[%emt 0:01:15]} Bf4 {[%emt 0:00:00]} 21. a4 {[%emt 0:01:25]} Rc7 {[%emt 0:01:08]} 22. Rad1 {[%emt 0:04:38]} g5 {[%emt 0:04:26]} 23. g4 {[%emt 0:01:56]} Rd8+ {[%emt 0:00:30]} 24. Kc2 {[%emt 0:00:11]} Rxd1 {[%emt 0:00:06]} 25. Rxd1 {[%emt 0:00:04]} Bxh2 {[%emt 0:00:07]} 26. c4 {[%emt 0:01:10]} Bg3 {[%emt 0:06:07]} 27. Rh1 {[%emt 0:00:25]} Bh4 {[%emt 0:04:26]} 28. a5 {[%emt 0:01:04]} h5 {[%emt 0:00:28]} 29. gxh5 {[%emt 0:01:45]} f5 {[%emt 0:00:04]} 30. exf5 {[%emt 0:02:09]} exf5 {[%emt 0:00:05]} 31. c5 {[%emt 0:04:21]} Kf6 {[%emt 0:00:55]} 32. Bd3 {[%emt 0:01:15]} Bg3 {[%emt 0:09:44]} 33. h6 {[%emt 0:05:55]} Rh7 {[%emt 0:00:08]} 34. c6 {[%emt 0:03:25]} bxc6 {[%emt 0:00:59]} 35. a6 {[%emt 0:01:34]} Bb8 {[%emt 0:00:52]} 36. Kb3 {[%emt 0:02:03]} Ke5 {[%emt 0:20:02]} 37. Kc4 {[%emt 0:03:06]} Ba7 {[%emt 0:08:07]} 38. Rf1 {[%emt 0:04:51]} Rxh6 {[%emt 0:00:20]} 39. Rxf5+ {[%emt 0:00:41]} Ke6 {[%emt 0:00:37]} 40. Rxg5 {[%emt 0:01:11]} Kf7 {[%emt 0:06:00]} 41. Rg3 {[%emt 0:14:13]} Bb6 {[%emt 0:05:43]} 42. Kc3 {[%emt 0:01:13]} Rd6 {[%emt 0:01:59]} 43. Bc4+ {[%emt 0:01:11]} Kf6 {[%emt 0:01:09]} 44. Rg8 {[%emt 0:01:15]} Ke5 {[%emt 0:05:41]} 45. Re8+ {[%emt 0:01:30]} Kf4 {[%emt 0:00:38]} 46. Kb3 {[%emt 0:01:40]} Rh6 {[%emt 0:02:04]} 47. Rb8 {[%emt 0:05:05]} Bd4 {[%emt 0:00:36]} 48. Rb7 {[%emt 0:01:41]} Rh1 {[%emt 0:02:26]} 49. Rc7 {[%emt 0:01:57]} Rb1+ {[%emt 0:00:55]} 50. Ka3 {[%emt 0:01:07]} Rh1 {[%emt 0:10:00]} 51. Rxc6 {[%emt 0:00:37]} Be3 {[%emt 0:02:40]} 52. Rc7 {[%emt 0:01:23]} Ke5 {[%emt 0:01:30]} 53. Re7+ {[%emt 0:00:22]} Kd4 {[%emt 0:00:06]} 54. Rxe3 {[%emt 0:00:14]} Kxc4 {[%emt 0:00:37]} 55. Ka4 {[%emt 0:00:36]} Ra1+ {[%emt 0:02:00]} 56. Ra3 {[%emt 0:00:08]} Rh1 {[%emt 0:01:49]} 57. a7 {[%emt 0:00:12]} Rh7 {[%emt 0:00:07]} 58. a8=Q {[%emt 0:01:39]} 1-0

[Event "44th Chess Olympiad Open 2022"]
[Site "Chennai"]
[Date "2022.08.09"]
[Round "11.50"]
[White "Chaulagain, Purushottam"]
[Black "Cu Hor, Winston Darwin"]
[Result "1/2-1/2"]
[ECO "A58"]
[WhiteElo "1975"]
[BlackElo "2328"]
[Annotator "RC"]
[PlyCount "235"]
[EventDate "2022.07.29"]
[EventType "team-tourn"]
[EventCountry "IND"]
[SourceTitle "playchess.com"]
[Source "ChessBase"]
[SourceQuality "1"]
[WhiteTeam "Nepal"]
[BlackTeam "Guatemala"]
[WhiteTeamCountry "NEP"]
[BlackTeamCountry "GUA"]
[TimeControl "40/5400+30:1800+30"]

1. d4 {[%emt 0:00:06]} c5 {[%emt 0:00:05]} 2. d5 {[%emt 0:03:26]} g6 {[%emt 0:02:44]} 3. g3 {[%emt 0:02:45]} Bg7 {[%emt 0:00:44]} 4. Bg2 {[%emt 0:00:02]} d6 {[%emt 0:01:02]} 5. Nf3 {[%emt 0:01:05]} Nf6 {[%emt 0:00:50]} 6. O-O {[%emt 0:00:35]} b5 {[%emt 0:00:36]} 7. c4 {[%emt 0:02:21]} O-O {[%emt 0:06:01]} 8. cxb5 {[%emt 0:01:02]} a6 {[%emt 0:00:30]} 9. Nc3 {[%emt 0:01:31]} axb5 {[%emt 0:00:06]} 10. Nxb5 {[%emt 0:01:13]} Ba6 {[%emt 0:00:04]} 11. Nc3 {[%emt 0:00:44]} Nbd7 {[%emt 0:00:06]} 12. h3 {[%emt 0:02:13]} Qa5 {[%emt 0:07:20]} 13. Qc2 {[%emt 0:01:13]} Rfb8 {[%emt 0:00:12]} 14. Rb1 {[%emt 0:05:30]} Nb6 {[%emt 0:09:17]} 15. Rd1 {[%emt 0:06:26]} Nfd7 {[%emt 0:05:44]} 16. Bg5 {[%emt 0:06:22]} Nc4 {[%emt 0:00:08]} 17. Bxe7 {[%emt 0:16:38]} Re8 {[%emt 0:02:05]} 18. Bg5 {[%emt 0:03:28]} Nxb2 {[%emt 0:04:24]} 19. Rdc1 {[%emt 0:04:20]} Nc4 {[%emt 0:06:22]} 20. Qa4 {[%emt 0:10:43]} Qxa4 {[%emt 0:10:34]} 21. Nxa4 {[%emt 0:00:05]} h6 {[%emt 0:00:36]} 22. Bf4 {[%emt 0:02:58]} g5 {[%emt 0:00:34]} 23. Bd2 {[%emt 0:01:51]} Nxd2 {[%emt 0:02:37]} 24. Nxd2 {[%emt 0:00:02]} Rxe2 {[%emt 0:00:34]} 25. Ne4 {[%emt 0:05:13]} Bd3 {[%emt 0:07:23]} 26. Nac3 {[%emt 0:00:40]} Bxe4 {[%emt 0:01:41]} 27. Nxe2 {[%emt 0:02:53]} Bxb1 {[%emt 0:00:07]} 28. Rxb1 {[%emt 0:00:04]} Rxa2 {[%emt 0:00:21]} 29. Rb7 {[%emt 0:05:10]} Ne5 {[%emt 0:08:52]} 30. Rb8+ {[%emt 0:00:33]} Bf8 {[%emt 0:00:02]} 31. Nc3 {[%emt 0:01:31]} Ra1+ {[%emt 0:00:34]} 32. Bf1 {[%emt 0:03:06]} f5 {[%emt 0:04:26]} 33. Kg2 {[%emt 0:01:02]} f4 {[%emt 0:02:25]} 34. gxf4 {[%emt 0:00:21]} gxf4 {[%emt 0:00:02]} 35. Bb5 {[%emt 0:02:37]} Re1 {[%emt 0:04:26]} 36. Be8 {[%emt 0:04:20]} Kh7 {[%emt 0:08:41]} 37. Bh5 {[%emt 0:00:45]} Bg7 {[%emt 0:00:42]} 38. Nb5 {[%emt 0:02:06]} Nc4 {[%emt 0:00:53]} 39. Nc7 {[%emt 0:01:13]} Re7 {[%emt 0:04:50]} 40. Ne6 {[%emt 0:00:53]} Ne5 {[%emt 0:00:59]} 41. Nxf4 {[%emt 0:02:24]} Bf6 {[%emt 0:05:49]} 42. Ne6 {[%emt 0:01:27]} Ng6 {[%emt 0:02:08]} 43. Bg4 {[%emt 0:03:36]} Rf7 {[%emt 0:02:34]} 44. f4 {[%emt 0:09:20]} Bg7 {[%emt 0:01:58]} 45. Kg3 {[%emt 0:00:17]} Nxf4 {[%emt 0:02:59]} 46. Nxf4 {[%emt 0:05:08]} Be5 {[%emt 0:00:02]} 47. Be6 {[%emt 0:00:44]} Rxf4 {[%emt 0:00:17]} 48. Kg2 {[%emt 0:00:18]} c4 {[%emt 0:00:45]} 49. Rb4 {[%emt 0:02:34]} Kg6 {[%emt 0:05:05]} 50. Bg4 {[%emt 0:00:51]} Kf6 {[%emt 0:00:50]} 51. Be2 {[%emt 0:03:58]} c3 {[%emt 0:02:37]} 52. Rxf4+ {[%emt 0:00:05]} Bxf4 {[%emt 0:00:01]} 53. Bd3 {[%emt 0:00:09]} Ke5 {[%emt 0:00:41]} 54. Kf3 {[%emt 0:00:18]} Bd2 {[%emt 0:02:32]} 55. Ke2 {[%emt 0:00:28]} Kxd5 {[%emt 0:00:33]} 56. Kd1 {[%emt 0:00:10]} Ke5 {[%emt 0:00:43]} 57. Kc2 {[%emt 0:00:10]} Kf4 {[%emt 0:00:08]} 58. Bc4 {[%emt 0:01:25]} Ke3 {[%emt 0:00:45]} 59. Be6 {[%emt 0:00:22]} Kd4 {[%emt 0:00:01]} 60. Bf5 {[%emt 0:00:16]} Bg5 {[%emt 0:00:06]} 61. Bd3 {[%emt 0:01:27]} Bf6 {[%emt 0:00:46]} 62. Bf5 {[%emt 0:00:27]} Ke3 {[%emt 0:00:00]} 63. Be6 {[%emt 0:00:15]} Kf4 {[%emt 0:00:00]} 64. Bd5 {[%emt 0:00:52]} Kg3 {[%emt 0:01:04]} 65. Be6 {[%emt 0:00:11]} d5 {[%emt 0:00:05]} 66. Bf5 {[%emt 0:01:09]} h5 {[%emt 0:00:11]} 67. Bg6 {[%emt 0:01:23]} h4 {[%emt 0:01:33]} 68. Bf5 {[%emt 0:00:04]} d4 {[%emt 0:00:06]} 69. Bd7 {[%emt 0:01:12]} Kf3 {[%emt 0:00:28]} 70. Bf5 {[%emt 0:00:35]} Kf4 {[%emt 0:00:01]} 71. Bd7 {[%emt 0:00:14]} Ke4 {[%emt 0:00:05]} 72. Bb5 {[%emt 0:00:21]} Ke3 {[%emt 0:00:34]} 73. Bc4 {[%emt 0:00:34]} Kf3 {[%emt 0:00:30]} 74. Bd5+ {[%emt 0:00:50]} Kf4 {[%emt 0:00:41]} 75. Be6 {[%emt 0:00:59]} Bg7 {[%emt 0:00:01]} 76. Bf7 {[%emt 0:00:43]} Kg3 {[%emt 0:00:30]} 77. Be6 {[%emt 0:00:04]} Kg2 {[%emt 0:00:04]} 78. Bf5 {[%emt 0:00:21]} Kf3 {[%emt 0:00:06]} 79. Bd7 {[%emt 0:00:20]} Kf4 {[%emt 0:00:07]} 80. Be6 {[%emt 0:00:34]} Ke4 {[%emt 0:00:13]} 81. Bc4 {[%emt 0:00:07]} Ke3 {[%emt 0:00:04]} 82. Bb5 {[%emt 0:00:30]} Kf4 {[%emt 0:00:27]} 83. Bd7 {[%emt 0:00:28]} Bh8 {[%emt 0:00:09]} 84. Bc6 {[%emt 0:00:26]} Kg3 {[%emt 0:00:14]} 85. Bd7 {[%emt 0:00:05]} Kf3 {[%emt 0:00:03]} 86. Bc6+ {[%emt 0:00:13]} Kf2 {[%emt 0:00:08]} 87. Bb5 {[%emt 0:00:19]} Be5 {[%emt 0:00:23]} 88. Bc4 {[%emt 0:00:15]} Kg3 {[%emt 0:00:16]} 89. Be6 {[%emt 0:00:05]} Kf4 {[%emt 0:00:04]} 90. Bd5 {[%emt 0:00:25]} Bc7 {[%emt 0:00:14]} 91. Be6 {[%emt 0:00:22]} Ba5 {[%emt 0:00:06]} 92. Bc4 {[%emt 0:00:22]} Kf3 {[%emt 0:00:20]} 93. Bd5+ {[%emt 0:00:20]} Ke3 {[%emt 0:00:37]} 94. Bc4 {[%emt 0:00:05]} Kf4 {[%emt 0:00:06]} 95. Be6 {[%emt 0:00:25]} Bb4 {[%emt 0:00:20]} 96. Bd5 {[%emt 0:00:57]} Ke3 {[%emt 0:00:23]} 97. Bc4 {[%emt 0:00:06]} Ke4 {[%emt 0:00:04]} 98. Bd3+ {[%emt 0:00:24]} Kf4 {[%emt 0:00:02]} 99. Bc4 {[%emt 0:00:13]} Ba5 {[%emt 0:00:21]} 100. Be6 {[%emt 0:00:28]} Ke4 {[%emt 0:00:13]} 101. Bc4 {[%emt 0:00:08]} Ke3 {[%emt 0:00:06]} 102. Bb5 {[%emt 0:00:14]} Kf4 {[%emt 0:00:11]} 103. Bd7 {[%emt 0:00:41]} Bb4 {[%emt 0:00:41]} 104. Bb5 {[%emt 0:00:16]} Ba3 {[%emt 0:00:02]} 105. Bd7 {[%emt 0:00:27]} Bb2 {[%emt 0:00:05]} 106. Bb5 {[%emt 0:00:24]} Ba1 {[%emt 0:00:16]} 107. Bd7 {[%emt 0:00:26]} Ke3 {[%emt 0:00:07]} 108. Bb5 {[%emt 0:00:12]} Kf3 {[%emt 0:00:02]} 109. Bc6+ {[%emt 0:00:31]} Kg3 {[%emt 0:00:46]} 110. Bd7 {[%emt 0:00:06]} Kg2 {[%emt 0:00:08]} 111. Bf5 {[%emt 0:00:18]} Kf3 {[%emt 0:00:01]} 112. Bd7 {[%emt 0:00:23]} Ke4 {[%emt 0:00:07]} 113. Bc6+ {[%emt 0:00:13]} Ke3 {[%emt 0:00:07]} 114. Bb5 {[%emt 0:00:05]} Kf4 {[%emt 0:00:03]} 115. Bd7 {[%emt 0:00:12]} Bb2 {[%emt 0:00:05]} 116. Bc6 {[%emt 0:00:14]} Kg3 {[%emt 0:00:28]} 117. Bd7 {[%emt 0:00:05]} Kg2 {[%emt 0:00:03]} 118. Bf5 {[%emt 0:00:11]} 1/2-1/2

[Event "44th Chess Olympiad Open 2022"]
[Site "Chennai"]
[Date "2022.08.09"]
[Round "11.51"]
[White "Sanchez Alvarez, Roberto Carlos"]
[Black "Bagheri, Amir"]
[Result "1-0"]
[ECO "B12"]
[WhiteElo "2431"]
[BlackElo "2375"]
[Annotator "RC"]
[PlyCount "87"]
[EventDate "2022.07.29"]
[EventType "team-tourn"]
[EventCountry "IND"]
[SourceTitle "playchess.com"]
[Source "ChessBase"]
[SourceQuality "1"]
[WhiteTeam "Panama"]
[BlackTeam "Monaco"]
[WhiteTeamCountry "PAN"]
[BlackTeamCountry "MNC"]
[TimeControl "40/5400+30:1800+30"]

1. e4 {[%emt 0:00:03]} c6 {[%emt 0:00:09]} 2. d4 {[%emt 0:00:13]} d5 {[%emt 0:00:06]} 3. f3 {[%emt 0:00:06]} e6 {[%emt 0:01:41]} 4. Nc3 {[%emt 0:00:11]} Bb4 {[%emt 0:00:18]} 5. e5 {[%emt 0:03:53]} c5 {[%emt 0:32:11]} 6. a3 {[%emt 0:01:52]} Bxc3+ {[%emt 0:06:28]} 7. bxc3 {[%emt 0:00:49]} Qa5 {[%emt 0:00:03]} 8. Bd2 {[%emt 0:00:28]} c4 {[%emt 0:00:12]} 9. a4 {[%emt 0:01:37]} Nc6 {[%emt 0:06:48]} 10. f4 {[%emt 0:03:55]} Nge7 {[%emt 0:01:07]} 11. Nf3 {[%emt 0:02:37]} Bd7 {[%emt 0:01:57]} 12. g3 {[%emt 0:02:14]} Nd8 {[%emt 0:02:45]} 13. Bh3 {[%emt 0:02:01]} Bxa4 {[%emt 0:00:57]} 14. Ra2 {[%emt 0:05:52]} Qa6 {[%emt 0:03:32]} 15. O-O {[%emt 0:14:47]} g6 {[%emt 0:08:57]} 16. f5 {[%emt 0:15:02]} exf5 {[%emt 0:11:07]} 17. g4 {[%emt 0:06:14]} Ne6 {[%emt 0:05:50]} 18. gxf5 {[%emt 0:00:00]} gxf5 {[%emt 0:02:56]} 19. Nh4 {[%emt 0:00:00]} O-O-O {[%emt 0:04:49]} 20. Nxf5 {[%emt 0:02:12]} Nxf5 {[%emt 0:00:10]} 21. Rxf5 {[%emt 0:00:09]} Rhg8+ {[%emt 0:03:09]} 22. Kh1 {[%emt 0:05:30]} Rg7 {[%emt 0:00:38]} 23. Bh6 {[%emt 0:00:49]} Rg6 {[%emt 0:00:32]} 24. Be3 {[%emt 0:00:03]} Rd7 {[%emt 0:00:44]} 25. Rf2 {[%emt 0:02:08]} b5 {[%emt 0:01:28]} 26. Qh5 {[%emt 0:01:09]} Qa5 {[%emt 0:00:43]} 27. Bd2 {[%emt 0:00:59]} Qd8 {[%emt 0:00:44]} 28. Bf5 {[%emt 0:06:00]} Qg8 {[%emt 0:00:50]} 29. Bxg6 {[%emt 0:00:35]} hxg6 {[%emt 0:00:34]} 30. Qg4 {[%emt 0:03:23]} Qh7 {[%emt 0:00:14]} 31. Bg5 {[%emt 0:03:52]} Kc7 {[%emt 0:00:33]} 32. Rf3 {[%emt 0:02:36]} Ng7 {[%emt 0:01:27]} 33. Bf6 {[%emt 0:03:41]} Nh5 {[%emt 0:00:57]} 34. e6 {[%emt 0:00:16]} fxe6 {[%emt 0:00:18]} 35. Be5+ {[%emt 0:00:21]} Kb7 {[%emt 0:00:28]} 36. Qxe6 {[%emt 0:00:34]} g5 {[%emt 0:00:12]} 37. Bd6 {[%emt 0:07:30]} Nf4 {[%emt 0:01:00]} 38. Rxf4 {[%emt 0:00:02]} gxf4 {[%emt 0:00:13]} 39. Qxd5+ {[%emt 0:00:06]} Kb6 {[%emt 0:00:21]} 40. Qc5+ {[%emt 0:03:28]} Kb7 {[%emt 0:00:29]} 41. Qd5+ {[%emt 0:30:08]} Kb6 {[%emt 0:30:17]} 42. Rxa4 {[%emt 0:01:49]} bxa4 {[%emt 0:00:21]} 43. Qc5+ {[%emt 0:00:09]} Kb7 {[%emt 0:00:10]} 44. Qb5+ {[%emt 0:00:15]} 1-0